[Event "WTCC-50 2018"]
[Site "Radebeul"]
[Date "2018.07.15"]
[Round "9"]
[White "Schlosser, Philipp"]
[Black "Speelman, Jon S"]
[Result "1/2-1/2"]
[ECO "A04"]
[WhiteElo "2501"]
[BlackElo "2493"]
[Annotator "RC"]
[PlyCount "44"]
[EventDate "2018.07.07"]
[EventType "team-tourn"]
[EventCountry "GER"]
[SourceTitle "playchess.com"]
[Source "ChessBase"]
[SourceQuality "1"]
[TimeControl "40/5400+30:1800+30"]

1. Nf3 {[%emt 0:03:04]} e6 {[%emt 0:00:19]} 2. g3 {[%emt 0:00:20]} b5 {[%emt 0:01:05]} 3. Bg2 {[%emt 0:01:06]} Bb7 {[%emt 0:00:06]} 4. O-O {[%emt 0:00:24]} Nf6 {[%emt 0:00:48]} 5. b3 {[%emt 0:02:28]} Be7 {[%emt 0:01:10]} 6. c4 {[%emt 0:00:29]} a6 {[%emt 0:03:51]} 7. Nc3 {[%emt 0:00:23]} b4 {[%emt 0:00:38]} 8. Na4 {[%emt 0:00:04]} O-O {[%emt 0:01:15]} 9. d4 {[%emt 0:12:20]} d6 {[%emt 0:04:23]} 10. Ne1 {[%emt 0:05:50]} Bxg2 {[%emt 0:02:35]} 11. Nxg2 {[%emt 0:01:52]} Nbd7 {[%emt 0:01:07]} 12. f3 {[%emt 0:02:10]} Nb6 {[%emt 0:03:13]} 13. Nxb6 {[%emt 0:07:29]} cxb6 {[%emt 0:00:07]} 14. e4 {[%emt 0:00:28]} b5 {[%emt 0:03:11]} 15. a3 {[%emt 0:14:26]} bxa3 {[%emt 0:03:33]} 16. Bxa3 {[%emt 0:01:03]} Qc7 {[%emt 0:02:38]} 17. Ne3 {[%emt 0:01:17]} Rfb8 {[%emt 0:03:00]} 18. Qd3 {[%emt 0:03:13]} Qb7 {[%emt 0:01:59]} 19. Rfd1 {[%emt 0:04:13]} Bf8 {[%emt 0:01:01]} 20. Ra2 {[%emt 0:04:16]} a5 {[%emt 0:02:28]} 21. Rda1 {[%emt 0:03:10]} a4 {[%emt 0:02:25]} 22. Bb2 {[%emt 0:13:14]} axb3 {[%emt 0:03:58]} 1/2-1/2

[Event "WTCC-50 2018"]
[Site "Radebeul"]
[Date "2018.07.15"]
[Round "9"]
[White "Enders, Peter"]
[Black "Strutinskaia, Galina"]
[Result "1/2-1/2"]
[ECO "A01"]
[WhiteElo "2445"]
[BlackElo "2221"]
[Annotator "NA"]
[PlyCount "54"]
[EventDate "2018.07.07"]
[EventType "team-tourn"]
[EventCountry "GER"]
[SourceTitle "playchess.com"]
[Source "ChessBase"]
[SourceQuality "1"]
[TimeControl "40/5400+30:1800+30"]

1. b3 {[%emt 0:00:00]} d5 {[%emt 0:00:23]} 2. Bb2 {[%emt 0:00:00]} Bf5 {[%emt 0:00:23]} 3. d3 {[%emt 0:00:00]} e6 {[%emt 0:00:21]} 4. Nd2 {[%emt 0:00:00]} Nf6 {[%emt 0:00:07]} 5. g3 {[%emt 0:00:00]} c6 {[%emt 0:01:45]} 6. Bg2 {[%emt 0:00:03]} h6 {[%emt 0:02:41]} 7. e4 {[%emt 0:00:08]} Bh7 {[%emt 0:00:15]} 8. Qe2 {[%emt 0:00:12]} a5 {[%emt 0:00:43]} 9. a3 {[%emt 0:01:28]} Be7 {[%emt 0:01:05]} 10. Ngf3 {[%emt 0:00:14]} O-O {[%emt 0:01:35]} 11. O-O {[%emt 0:00:06]} Re8 {[%emt 0:14:31]} 12. Kh1 {[%emt 0:01:08]} c5 {[%emt 0:00:31]} 13. Ne5 a4 {[%emt 0:04:20]} 14. bxa4 {[%emt 0:19:54]} Rxa4 {[%emt 0:01:42]} 15. exd5 {[%emt 0:00:53]} exd5 {[%emt 0:01:57]} 16. Rfe1 {[%emt 0:01:32]} Ra6 {[%emt 0:07:43]} 17. Rab1 {[%emt 0:04:16]} b5 {[%emt 0:02:48]} 18. Ndf3 {[%emt 0:06:51]} Bf8 {[%emt 0:03:59]} 19. Qd2 {[%emt 0:01:53]} Nbd7 {[%emt 0:01:48]} 20. Re2 {[%emt 0:06:16]} d4 {[%emt 0:13:07]} 21. Rbe1 {[%emt 0:00:15]} Nxe5 {[%emt 0:00:28]} 22. Nxe5 {[%emt 0:00:37]} Qc7 {[%emt 0:00:22]} 23. c3 {[%emt 0:03:47]} dxc3 {[%emt 0:01:55]} 24. Qxc3 {[%emt 0:00:14]} Rd8 {[%emt 0:00:09]} 25. Qb3 {[%emt 0:04:44]} Rb6 {[%emt 0:05:23]} 26. Re3 {[%emt 0:01:47]} Bf5 {[%emt 0:01:35]} 27. h3 {[%emt 0:08:33]} Be6 1/2-1/2

[Event "WTCC-50 2018"]
[Site "Radebeul"]
[Date "2018.07.15"]
[Round "9"]
[White "Casper, Thomas"]
[Black "Fatalibekova, Elena"]
[Result "1-0"]
[ECO "B40"]
[WhiteElo "2354"]
[BlackElo "2195"]
[Annotator "NA"]
[PlyCount "65"]
[EventDate "2018.07.07"]
[EventType "team-tourn"]
[EventCountry "GER"]
[SourceTitle "playchess.com"]
[Source "ChessBase"]
[SourceQuality "1"]
[TimeControl "40/5400+30:1800+30"]

1. e4 {[%emt 0:00:00]} c5 {[%emt 0:00:00]} 2. Nf3 {[%emt 0:00:16]} e6 {[%emt 0:00:00]} 3. d3 {[%emt 0:04:36]} d5 {[%emt 0:00:04]} 4. Nbd2 {[%emt 0:00:10]} Nc6 {[%emt 0:00:19]} 5. g3 {[%emt 0:00:43]} Bd6 {[%emt 0:00:30]} 6. Bg2 {[%emt 0:02:21]} Nge7 {[%emt 0:00:07]} 7. O-O {[%emt 0:00:40]} O-O {[%emt 0:00:10]} 8. Re1 {[%emt 0:03:29]} Qc7 {[%emt 0:02:17]} 9. c3 {[%emt 0:05:18]} b6 {[%emt 0:02:42]} 10. a3 {[%emt 0:14:15]} a5 {[%emt 0:01:10]} 11. a4 {[%emt 0:09:14]} Ba6 {[%emt 0:00:35]} 12. exd5 {[%emt 0:18:12]} exd5 {[%emt 0:00:28]} 13. Nb1 {[%emt 0:01:37]} Rad8 {[%emt 0:05:16]} 14. Na3 {[%emt 0:01:46]} Qd7 {[%emt 0:06:25]} 15. Nb5 {[%emt 0:07:40]} Bxb5 {[%emt 0:00:50]} 16. axb5 {[%emt 0:00:04]} Na7 {[%emt 0:00:28]} 17. c4 {[%emt 0:00:32]} Ng6 {[%emt 0:12:25]} 18. Bd2 {[%emt 0:05:00]} Qf5 {[%emt 0:03:53]} 19. Qe2 {[%emt 0:02:48]} Rd7 {[%emt 0:00:50]} 20. Qf1 {[%emt 0:01:15]} Re7 {[%emt 0:03:20]} 21. Bc3 {[%emt 0:08:49]} d4 {[%emt 0:04:57]} 22. Bd2 {[%emt 0:00:08]} Rfe8 {[%emt 0:00:13]} 23. Rxe7 {[%emt 0:01:32]} Rxe7 {[%emt 0:00:02]} 24. Re1 {[%emt 0:00:45]} h5 {[%emt 0:00:59]} 25. Ng5 {[%emt 0:03:25]} Rxe1 {[%emt 0:11:55]} 26. Qxe1 {[%emt 0:00:12]} Be7 {[%emt 0:01:02]} 27. Be4 {[%emt 0:00:57]} Qd7 {[%emt 0:01:33]} 28. Qd1 {[%emt 0:02:25]} Bxg5 {[%emt 0:03:05]} 29. Bxg5 {[%emt 0:00:03]} Qg4 {[%emt 0:03:33]} 30. Qxg4 {[%emt 0:00:53]} hxg4 {[%emt 0:00:03]} 31. Bf5 {[%emt 0:02:03]} f6 {[%emt 0:00:18]} 32. Bxg6 {[%emt 0:00:14]} fxg5 {[%emt 0:00:04]} 33. Bf5 {[%emt 0:00:09]} 1-0

[Event "WTCC-50 2018"]
[Site "Radebeul"]
[Date "2018.07.15"]
[Round "9"]
[White "Welling, Gerard"]
[Black "Schweitzer, Andreas"]
[Result "1/2-1/2"]
[ECO "B20"]
[WhiteElo "2317"]
[BlackElo "2239"]
[Annotator "NA"]
[PlyCount "32"]
[EventDate "2018.07.07"]
[EventType "team-tourn"]
[EventCountry "GER"]
[SourceTitle "playchess.com"]
[Source "ChessBase"]
[SourceQuality "1"]
[TimeControl "40/5400+30:1800+30"]

1. e4 {[%emt 0:00:00]} c5 {[%emt 0:00:00]} 2. d3 {[%emt 0:00:00]} Nc6 {[%emt 0:00:18]} 3. g3 {[%emt 0:00:03]} d5 {[%emt 0:00:20]} 4. Nd2 {[%emt 0:00:07]} Nf6 {[%emt 0:00:20]} 5. Bg2 {[%emt 0:00:07]} dxe4 {[%emt 0:02:16]} 6. dxe4 {[%emt 0:00:07]} g6 {[%emt 0:05:37]} 7. Ngf3 {[%emt 0:01:36]} Bg7 {[%emt 0:00:56]} 8. O-O {[%emt 0:00:13]} O-O {[%emt 0:00:57]} 9. Re1 {[%emt 0:00:06]} Nd7 {[%emt 0:04:52]} 10. Nf1 {[%emt 0:04:38]} Qc7 {[%emt 0:10:12]} 11. Ne3 {[%emt 0:03:54]} e6 {[%emt 0:01:40]} 12. Nc4 {[%emt 0:02:40]} Nde5 {[%emt 0:08:33]} 13. Nfxe5 {[%emt 0:04:06]} Nxe5 {[%emt 0:03:11]} 14. Nxe5 {[%emt 0:07:08]} Bxe5 {[%emt 0:00:33]} 15. c3 {[%emt 0:00:10]} b5 {[%emt 0:09:49]} 16. Bh6 {[%emt 0:02:50]} Rd8 1/2-1/2

[Event "WTCC-50 2018"]
[Site "Radebeul"]
[Date "2018.07.15"]
[Round "9"]
[White "Wallner, Joachim"]
[Black "Penzold, Andreas"]
[Result "0-1"]
[ECO "A04"]
[WhiteElo "2311"]
[BlackElo "2389"]
[Annotator "NA"]
[PlyCount "94"]
[EventDate "2018.07.07"]
[EventType "team-tourn"]
[EventCountry "GER"]
[SourceTitle "playchess.com"]
[Source "ChessBase"]
[SourceQuality "1"]
[TimeControl "40/5400+30:1800+30"]

1. Nf3 {[%emt 0:00:00]} c5 {[%emt 0:00:32]} 2. c4 {[%emt 0:02:18]} g6 {[%emt 0:00:35]} 3. g3 {[%emt 0:00:02]} Bg7 {[%emt 0:00:13]} 4. Bg2 {[%emt 0:00:02]} Nc6 {[%emt 0:00:24]} 5. O-O {[%emt 0:00:14]} e6 {[%emt 0:02:17]} 6. Nc3 {[%emt 0:03:42]} Nge7 {[%emt 0:00:19]} 7. d3 {[%emt 0:00:06]} O-O {[%emt 0:03:33]} 8. Bf4 {[%emt 0:07:00]} d6 {[%emt 0:07:08]} 9. Qc1 {[%emt 0:08:57]} Nf5 {[%emt 0:18:56]} 10. Re1 {[%emt 0:06:25]} Rb8 {[%emt 0:01:59]} 11. Ne4 {[%emt 0:04:04]} e5 {[%emt 0:00:47]} 12. Bg5 {[%emt 0:00:22]} f6 {[%emt 0:00:26]} 13. Bd2 {[%emt 0:00:06]} Nfe7 {[%emt 0:01:55]} 14. Nc3 {[%emt 0:00:34]} Be6 {[%emt 0:02:59]} 15. a3 {[%emt 0:11:39]} b6 {[%emt 0:07:26]} 16. Rb1 {[%emt 0:01:53]} Nd4 {[%emt 0:08:47]} 17. b4 {[%emt 0:01:17]} Qd7 {[%emt 0:00:54]} 18. e3 {[%emt 0:04:13]} Nxf3+ {[%emt 0:00:27]} 19. Bxf3 {[%emt 0:00:02]} Rbc8 {[%emt 0:01:27]} 20. b5 {[%emt 0:07:20]} d5 {[%emt 0:04:48]} 21. cxd5 {[%emt 0:00:24]} Nxd5 {[%emt 0:00:07]} 22. Rd1 {[%emt 0:00:31]} Ne7 {[%emt 0:01:44]} 23. Be1 {[%emt 0:01:50]} f5 {[%emt 0:00:22]} 24. Bg2 {[%emt 0:03:50]} Rfd8 {[%emt 0:10:31]} 25. Ne2 {[%emt 0:02:15]} Qe8 {[%emt 0:00:43]} 26. Bc3 {[%emt 0:01:15]} Nd5 {[%emt 0:03:16]} 27. Ba1 {[%emt 0:01:47]} Rc7 {[%emt 0:00:18]} 28. Qc2 {[%emt 0:02:13]} Re7 {[%emt 0:01:25]} 29. Nc3 {[%emt 0:00:36]} Nxc3 {[%emt 0:00:50]} 30. Bxc3 {[%emt 0:00:08]} Qf7 {[%emt 0:00:17]} 31. Qb2 {[%emt 0:05:36]} Bd5 {[%emt 0:02:39]} 32. e4 {[%emt 0:02:58]} Ba2 {[%emt 0:00:55]} 33. Ra1 {[%emt 0:00:44]} Bb3 {[%emt 0:00:28]} 34. Rdb1 {[%emt 0:01:20]} Be6 {[%emt 0:01:12]} 35. Bf1 {[%emt 0:02:13]} f4 {[%emt 0:00:48]} 36. a4 {[%emt 0:00:19]} fxg3 {[%emt 0:02:32]} 37. fxg3 {[%emt 0:05:30]} h5 {[%emt 0:00:37]} 38. Be2 {[%emt 0:01:56]} Bh3 {[%emt 0:00:25]} 39. Bd2 {[%emt 0:01:45]} Rf8 {[%emt 0:02:33]} 40. Be3 {[%emt 0:00:19]} Bh6 {[%emt 0:00:50]} 41. Qd2 {[%emt 0:30:15]} Qf2+ {[%emt 0:34:40]} 42. Bxf2 {[%emt 0:00:02]} Bxd2 {[%emt 0:00:10]} 43. Ra2 {[%emt 0:00:20]} Ref7 {[%emt 0:06:14]} 44. Rxd2 {[%emt 0:02:57]} Rxf2 {[%emt 0:00:00]} 45. d4 {[%emt 0:00:00]} Kg7 {[%emt 0:00:00]} 46. dxc5 {[%emt 0:00:00]} Rg2+ {[%emt 0:00:00]} 47. Kh1 {[%emt 0:00:00]} Rff2 {[%emt 0:00:00]} 0-1

[Event "WTCC-50 2018"]
[Site "Radebeul"]
[Date "2018.07.15"]
[Round "9"]
[White "Titscher, Libor"]
[Black "Van den Bersselaar, Jeroen"]
[Result "1/2-1/2"]
[ECO "A22"]
[WhiteElo "2306"]
[BlackElo "2142"]
[Annotator "NA"]
[PlyCount "25"]
[EventDate "2018.07.07"]
[EventType "team-tourn"]
[EventCountry "GER"]
[SourceTitle "playchess.com"]
[Source "ChessBase"]
[SourceQuality "1"]
[TimeControl "40/5400+30:1800+30"]

1. c4 {[%emt 0:00:00]} e5 {[%emt 0:00:00]} 2. Nc3 {[%emt 0:00:00]} Nf6 {[%emt 0:00:00]} 3. g3 {[%emt 0:00:00]} c6 {[%emt 0:00:20]} 4. Bg2 {[%emt 0:07:15]} d5 {[%emt 0:00:17]} 5. d4 {[%emt 0:19:57]} e4 {[%emt 0:02:32]} 6. Bg5 {[%emt 0:06:02]} Nbd7 {[%emt 0:00:32]} 7. cxd5 {[%emt 0:06:00]} cxd5 {[%emt 0:00:09]} 8. Qa4 {[%emt 0:00:46]} Qb6 {[%emt 0:02:58]} 9. O-O-O {[%emt 0:01:37]} Bb4 {[%emt 0:04:37]} 10. Bxf6 {[%emt 0:03:05]} Bxc3 {[%emt 0:00:13]} 11. bxc3 {[%emt 0:00:12]} Qxf6 {[%emt 0:00:10]} 12. f3 {[%emt 0:06:45]} Qh6+ {[%emt 0:07:13]} 13. Kb1 {[%emt 0:04:39]} 1/2-1/2

[Event "WTCC-50 2018"]
[Site "Radebeul"]
[Date "2018.07.15"]
[Round "9"]
[White "Fritsche, Lutz"]
[Black "Lewis, Andrew P"]
[Result "1/2-1/2"]
[ECO "B23"]
[WhiteElo "2303"]
[BlackElo "2298"]
[Annotator "NA"]
[PlyCount "48"]
[EventDate "2018.07.07"]
[EventType "team-tourn"]
[EventCountry "GER"]
[SourceTitle "playchess.com"]
[Source "ChessBase"]
[SourceQuality "1"]
[TimeControl "40/5400+30:1800+30"]

1. e4 {[%emt 0:00:00]} c5 {[%emt 0:00:00]} 2. Nc3 {[%emt 0:00:00]} a6 {[%emt 0:00:47]} 3. Nf3 {[%emt 0:01:09]} e6 {[%emt 0:00:18]} 4. g3 {[%emt 0:00:30]} b5 {[%emt 0:02:02]} 5. Bg2 {[%emt 0:00:17]} Bb7 {[%emt 0:00:17]} 6. O-O {[%emt 0:02:44]} b4 {[%emt 0:10:21]} 7. Na4 {[%emt 0:00:20]} Bxe4 {[%emt 0:00:50]} 8. Re1 {[%emt 0:01:09]} d5 {[%emt 0:10:52]} 9. d3 {[%emt 0:03:16]} Bxf3 {[%emt 0:05:44]} 10. Qxf3 {[%emt 0:00:20]} Be7 {[%emt 0:00:57]} 11. c3 {[%emt 0:04:51]} bxc3 {[%emt 0:04:20]} 12. bxc3 {[%emt 0:00:18]} Nf6 {[%emt 0:05:55]} 13. Be3 {[%emt 0:05:07]} Nbd7 {[%emt 0:04:06]} 14. c4 {[%emt 0:03:13]} O-O {[%emt 0:08:16]} 15. Qe2 {[%emt 0:05:58]} Bd6 {[%emt 0:06:25]} 16. Rec1 {[%emt 0:05:42]} Rc8 {[%emt 0:03:00]} 17. Rab1 {[%emt 0:00:26]} Re8 {[%emt 0:08:27]} 18. Qc2 {[%emt 0:04:53]} h6 {[%emt 0:12:56]} 19. Rb7 {[%emt 0:03:08]} Ne5 {[%emt 0:01:57]} 20. cxd5 {[%emt 0:04:49]} Nxd5 {[%emt 0:00:27]} 21. Bxc5 {[%emt 0:01:17]} Bxc5 {[%emt 0:04:13]} 22. Nxc5 {[%emt 0:01:09]} Rxc5 {[%emt 0:00:36]} 23. Qxc5 {[%emt 0:00:16]} Nxd3 {[%emt 0:00:09]} 24. Qa3 {[%emt 0:03:48]} Nxc1 {[%emt 0:01:02]} 1/2-1/2

[Event "WTCC-50 2018"]
[Site "Radebeul"]
[Date "2018.07.15"]
[Round "9"]
[White "Druckenthaner, Andreas"]
[Black "Wuttke, Hans"]
[Result "1/2-1/2"]
[ECO "B00"]
[WhiteElo "2296"]
[BlackElo "2160"]
[Annotator "NA"]
[PlyCount "40"]
[EventDate "2018.07.07"]
[EventType "team-tourn"]
[EventCountry "GER"]
[SourceTitle "playchess.com"]
[Source "ChessBase"]
[SourceQuality "1"]
[TimeControl "40/5400+30:1800+30"]

1. e4 {[%emt 0:00:00]} d6 {[%emt 0:00:08]} 2. d4 {[%emt 0:00:00]} Nf6 {[%emt 0:00:24]} 3. Nd2 {[%emt 0:00:00]} g6 {[%emt 0:00:10]} 4. Ngf3 {[%emt 0:00:00]} Bg7 {[%emt 0:00:18]} 5. Bc4 {[%emt 0:00:12]} O-O {[%emt 0:01:05]} 6. Bb3 {[%emt 0:00:30]} e6 {[%emt 0:06:17]} 7. O-O {[%emt 0:01:50]} b6 {[%emt 0:08:51]} 8. Re1 {[%emt 0:08:59]} Bb7 {[%emt 0:00:47]} 9. c3 {[%emt 0:02:28]} Nbd7 {[%emt 0:01:42]} 10. Bc2 {[%emt 0:02:16]} e5 {[%emt 0:03:27]} 11. dxe5 {[%emt 0:08:48]} Nxe5 {[%emt 0:01:10]} 12. Nxe5 {[%emt 0:03:11]} dxe5 {[%emt 0:00:02]} 13. Qe2 {[%emt 0:02:44]} Nh5 {[%emt 0:06:48]} 14. Nf3 {[%emt 0:06:37]} h6 {[%emt 0:00:59]} 15. Be3 {[%emt 0:05:18]} Qf6 {[%emt 0:00:44]} 16. Rad1 {[%emt 0:06:15]} Rad8 {[%emt 0:00:40]} 17. Rxd8 {[%emt 0:05:06]} Rxd8 {[%emt 0:00:46]} 18. Rd1 {[%emt 0:00:05]} Rd6 {[%emt 0:04:10]} 19. Qc4 {[%emt 0:05:02]} Rxd1+ {[%emt 0:01:46]} 20. Bxd1 {[%emt 0:00:10]} Qc6 {[%emt 0:00:33]} 1/2-1/2

[Event "WTCC-50 2018"]
[Site "Radebeul"]
[Date "2018.07.15"]
[Round "9"]
[White "Weitzer, Steffen"]
[Black "Holst, Conny"]
[Result "1-0"]
[ECO "D02"]
[WhiteElo "2288"]
[BlackElo "2103"]
[Annotator "NA"]
[PlyCount "75"]
[EventDate "2018.07.07"]
[EventType "team-tourn"]
[EventCountry "GER"]
[SourceTitle "playchess.com"]
[Source "ChessBase"]
[SourceQuality "1"]
[TimeControl "40/5400+30:1800+30"]

1. d4 {[%emt 0:00:00]} Nf6 {[%emt 0:00:00]} 2. Nf3 {[%emt 0:00:00]} d5 {[%emt 0:00:00]} 3. Bf4 {[%emt 0:00:00]} c5 {[%emt 0:00:33]} 4. e3 {[%emt 0:00:04]} Nc6 {[%emt 0:01:06]} 5. c3 {[%emt 0:02:19]} e6 {[%emt 0:00:38]} 6. Nbd2 {[%emt 0:00:11]} cxd4 {[%emt 0:01:48]} 7. exd4 {[%emt 0:00:19]} Nh5 {[%emt 0:04:07]} 8. Bg5 {[%emt 0:02:03]} f6 {[%emt 0:02:55]} 9. Be3 {[%emt 0:03:08]} Bd6 {[%emt 0:02:39]} 10. Bd3 {[%emt 0:06:21]} Nf4 {[%emt 0:04:28]} 11. Bxf4 {[%emt 0:02:37]} Bxf4 {[%emt 0:00:22]} 12. Qc2 {[%emt 0:00:11]} Kf7 {[%emt 0:05:10]} 13. O-O {[%emt 0:05:47]} Bd7 {[%emt 0:05:23]} 14. g3 {[%emt 0:06:22]} Bd6 {[%emt 0:01:33]} 15. Rae1 {[%emt 0:04:34]} Rc8 {[%emt 0:04:12]} 16. Qb1 {[%emt 0:01:02]} a6 {[%emt 0:18:27]} 17. Nh4 {[%emt 0:06:22]} Ne7 {[%emt 0:02:42]} 18. f4 {[%emt 0:03:58]} g6 {[%emt 0:03:35]} 19. Ndf3 {[%emt 0:03:54]} Kg7 {[%emt 0:02:07]} 20. Qc1 {[%emt 0:05:57]} b5 {[%emt 0:02:43]} 21. g4 {[%emt 0:02:37]} Rf8 {[%emt 0:02:39]} 22. Kh1 {[%emt 0:06:43]} Qc7 {[%emt 0:06:59]} 23. f5 {[%emt 0:09:18]} e5 {[%emt 0:05:06]} 24. Nxe5 {[%emt 0:05:27]} fxe5 {[%emt 0:04:32]} 25. Qg5 {[%emt 0:02:08]} Ng8 {[%emt 0:03:30]} 26. f6+ {[%emt 0:05:46]} Rxf6 {[%emt 0:03:25]} 27. Rxf6 {[%emt 0:03:59]} Nxf6 {[%emt 0:00:56]} 28. dxe5 {[%emt 0:01:05]} Be7 {[%emt 0:03:47]} 29. Nxg6 {[%emt 0:00:35]} h6 {[%emt 0:01:02]} 30. Qh4 {[%emt 0:00:23]} Bd8 {[%emt 0:03:29]} 31. exf6+ {[%emt 0:00:37]} Bxf6 {[%emt 0:00:09]} 32. Re7+ {[%emt 0:00:19]} Bxe7 {[%emt 0:00:04]} 33. Qxe7+ {[%emt 0:00:10]} Kg8 {[%emt 0:00:09]} 34. Qf6 {[%emt 0:05:13]} Re8 {[%emt 0:01:40]} 35. Nf8 {[%emt 0:01:47]} Bf5 {[%emt 0:02:08]} 36. Bxf5 {[%emt 0:00:29]} Rxf8 {[%emt 0:00:12]} 37. Be6+ Rf7 {[%emt 0:01:04]} 38. Bxd5 {[%emt 0:00:43]} 1-0

[Event "WTCC-50 2018"]
[Site "Radebeul"]
[Date "2018.07.15"]
[Round "9"]
[White "Dietze, Frank"]
[Black "Habel, Christof"]
[Result "1-0"]
[ECO "E08"]
[WhiteElo "2203"]
[BlackElo "2026"]
[Annotator "NA"]
[PlyCount "85"]
[EventDate "2018.07.07"]
[EventType "team-tourn"]
[EventCountry "GER"]
[SourceTitle "playchess.com"]
[Source "ChessBase"]
[SourceQuality "1"]
[TimeControl "40/5400+30:1800+30"]

1. d4 {[%emt 0:00:00]} Nf6 {[%emt 0:00:00]} 2. c4 {[%emt 0:00:41]} e6 {[%emt 0:00:54]} 3. g3 {[%emt 0:00:12]} Be7 {[%emt 0:01:31]} 4. Bg2 {[%emt 0:00:20]} d5 {[%emt 0:00:15]} 5. Nf3 {[%emt 0:00:10]} O-O {[%emt 0:01:14]} 6. O-O {[%emt 0:00:10]} Nbd7 {[%emt 0:01:51]} 7. Qc2 {[%emt 0:00:31]} Re8 {[%emt 0:07:18]} 8. Nbd2 {[%emt 0:03:18]} c5 {[%emt 0:03:35]} 9. dxc5 {[%emt 0:01:39]} Nxc5 {[%emt 0:06:30]} 10. Rd1 {[%emt 0:01:45]} Bd7 {[%emt 0:05:05]} 11. Ne5 {[%emt 0:02:57]} Rc8 {[%emt 0:01:08]} 12. Nxd7 {[%emt 0:08:38]} Ncxd7 {[%emt 0:00:33]} 13. Qb1 {[%emt 0:12:57]} dxc4 {[%emt 0:08:27]} 14. Bxb7 {[%emt 0:00:10]} Rb8 {[%emt 0:00:30]} 15. Bg2 {[%emt 0:00:17]} Ne5 {[%emt 0:08:39]} 16. Qc2 {[%emt 0:05:13]} Qc7 {[%emt 0:00:33]} 17. Nf3 {[%emt 0:08:26]} Bc5 {[%emt 0:06:47]} 18. Nxe5 {[%emt 0:07:35]} Qxe5 {[%emt 0:01:56]} 19. Qxc4 {[%emt 0:02:07]} Rec8 {[%emt 0:01:16]} 20. Qd3 {[%emt 0:15:41]} Ng4 {[%emt 0:08:07]} 21. e3 {[%emt 0:02:24]} Qh5 {[%emt 0:04:13]} 22. h3 {[%emt 0:07:49]} Ne5 {[%emt 0:02:19]} 23. g4 {[%emt 0:00:07]} Qh4 {[%emt 0:14:23]} 24. Qe4 {[%emt 0:05:28]} Ng6 {[%emt 0:03:03]} 25. b3 {[%emt 0:01:07]} Qf6 {[%emt 0:03:29]} 26. Bd2 {[%emt 0:02:09]} Ba3 {[%emt 0:04:23]} 27. Be1 {[%emt 0:00:51]} Rc5 {[%emt 0:01:07]} 28. Rab1 {[%emt 0:00:54]} Rbc8 {[%emt 0:00:46]} 29. Qa4 {[%emt 0:01:44]} Bb2 {[%emt 0:00:46]} 30. Qxa7 {[%emt 0:00:12]} Rc2 {[%emt 0:00:29]} 31. Be4 {[%emt 0:00:36]} Nh4 {[%emt 0:00:51]} 32. Qa5 {[%emt 0:04:35]} g6 {[%emt 0:00:51]} 33. g5 {[%emt 0:01:46]} Nf3+ {[%emt 0:00:28]} 34. Bxf3 {[%emt 0:00:01]} Qxf3 {[%emt 0:00:10]} 35. Rd8+ {[%emt 0:00:11]} Rxd8 {[%emt 0:03:21]} 36. Qxd8+ {[%emt 0:00:07]} Kg7 {[%emt 0:00:01]} 37. Rxb2 {[%emt 0:00:04]} Rc1 {[%emt 0:00:11]} 38. Qd2 {[%emt 0:01:28]} Qxh3 {[%emt 0:01:21]} 39. Qxc1 {[%emt 0:00:31]} Qg4+ {[%emt 0:00:25]} 40. Kf1 {[%emt 0:00:05]} Qh3+ {[%emt 0:00:08]} 41. Ke2 {[%emt 0:30:16]} Qg4+ {[%emt 0:30:01]} 42. f3 {[%emt 0:00:24]} Qg2+ {[%emt 0:00:07]} 43. Bf2 {[%emt 0:00:13]} 1-0

[Event "WTCC-50 2018"]
[Site "Radebeul"]
[Date "2018.07.15"]
[Round "9"]
[White "Schoeneberg, Manfred"]
[Black "Kirppo, Ronny"]
[Result "1/2-1/2"]
[ECO "B31"]
[WhiteElo "2199"]
[BlackElo "1930"]
[Annotator "NA"]
[PlyCount "42"]
[EventDate "2018.07.07"]
[EventType "team-tourn"]
[EventCountry "GER"]
[SourceTitle "playchess.com"]
[Source "ChessBase"]
[SourceQuality "1"]
[TimeControl "40/5400+30:1800+30"]

1. e4 {[%emt 0:00:02]} c5 {[%emt 0:00:00]} 2. Nf3 {[%emt 0:00:07]} Nc6 {[%emt 0:00:00]} 3. Bb5 {[%emt 0:01:08]} g6 {[%emt 0:00:00]} 4. O-O {[%emt 0:00:44]} Bg7 {[%emt 0:00:18]} 5. c3 {[%emt 0:00:06]} Nf6 {[%emt 0:00:20]} 6. e5 {[%emt 0:00:03]} Nd5 {[%emt 0:00:08]} 7. d4 {[%emt 0:00:06]} cxd4 {[%emt 0:00:08]} 8. cxd4 {[%emt 0:00:06]} O-O {[%emt 0:00:16]} 9. Nc3 {[%emt 0:00:12]} Nxc3 {[%emt 0:00:32]} 10. bxc3 {[%emt 0:00:05]} d6 {[%emt 0:10:59]} 11. exd6 {[%emt 0:01:33]} Qxd6 {[%emt 0:00:06]} 12. a4 {[%emt 0:02:17]} Qc7 {[%emt 0:10:22]} 13. Ba3 {[%emt 0:04:02]} Rd8 {[%emt 0:06:35]} 14. Re1 {[%emt 0:02:00]} Bf6 {[%emt 0:14:13]} 15. Rc1 {[%emt 0:12:08]} Be6 {[%emt 0:05:26]} 16. Nd2 {[%emt 0:16:31]} Bd5 {[%emt 0:23:11]} 17. Bf1 {[%emt 0:07:20]} Bg5 {[%emt 0:08:11]} 18. Rb1 {[%emt 0:15:32]} Na5 {[%emt 0:01:16]} 19. Bb4 {[%emt 0:01:57]} Nc6 {[%emt 0:01:21]} 20. Ba3 {[%emt 0:02:05]} Na5 {[%emt 0:00:15]} 21. Bb4 {[%emt 0:01:46]} Nc6 {[%emt 0:00:01]} 1/2-1/2